Cogmind - Beta 17 @@@ ROGUE MODE // 2026.08.12 @ 15:33:21 Player: Marc Result: Destroyed by S-10 Pest with Light Assault Rifle Performance ------------- Evolutions (0) 0 Regions Visited (2) 400 Robots Destroyed (11) 55 Value Destroyed (183) 183 Prototype IDs (0) 0 Alien Tech Used (0) 0 Bonus (0) 0 TOTAL SCORE: 638 Bonus ------- None Cogmind --------- Core Integrity 0/250 Matter 295/300 Energy 250/250 System Corruption 0% Temperature Cool (2) Movement Flying (37) Location -10/Mines Parts ------- > --- POWER (1) -------- Ion Engine > --- PROPULSION (2) --- Flight Unit Flight Unit > --- UTILITY (2) ------ Signal Interpreter > --- WEAPON (2) ------- Light Assault Rifle > --- INVENTORY (5) ---- Light Treads Flight Unit ECM Suite Peak State ------------ > --- POWER ------------ Light Ion Engine > --- PROPULSION ------- Aluminum Leg Aluminum Leg > --- UTILITY ---------- Small Storage Unit Signal Interpreter > --- WEAPON ----------- Beam Rifle Beam Rifle > --- INVENTORY -------- Ion Engine Light Assault Rifle [Rating: 9] Favorites ----------- Power Light Ion Engine Engine Light Ion Engine Propulsion Aluminum Leg Treads Light Treads Leg Aluminum Leg Flight Unit Flight Unit Utility Signal Interpreter Storage Small Storage Unit Processor Signal Interpreter Weapon Beam Rifle Energy Gun Beam Rifle Ballistic Gun Light Assault Rifle Special Melee Weapon Datajack Build | -11 -10 -10 ------- Run | Yrd Mat Min Slots Evolved . | . . . Power . | . . . Propulsion . | . . . Utility . | . . . Weapon . | . . . Parts Attached 11 | 2 5 4 Power 2 | 1 . 1 Engine 2 | 1 . 1 Core . | . . . Reactor . | . . . Propulsion 3 | . 2 1 Treads 1 | . 1 . Leg . | . . . Wheel . | . . . Hover . | . . . Flight 2 | . 1 1 Utility 1 | . 1 . Device . | . . . Storage . | . . . Processor 1 | . 1 . Hackware . | . . . Protection . | . . . Artifact . | . . . Weapon 5 | 1 2 2 Energy Gun 3 | 1 2 . Energy Cannon . | . . . Ballistic Gun 1 | . . 1 Ballistic Cannon . | . . . Launcher . | . . . Special Weapon . | . . . Impact Weapon . | . . . Slashing Weapon . | . . . Piercing Weapon . | . . . Special Melee Weapon 1 | . . 1 Unidentified Prototypes . | . . . Parts Lost 5 | . 2 3 Power 1 | . . 1 Propulsion 1 | . 1 . Utility . | . . . Weapon 3 | . 1 2 Highest Loss Streak 2 | . 1 2 To Critical Strikes . | . . . Average Backups 3 | 6 2 4 Power . | 1 1 . Propulsion . | 4 . 1 Utility . | . . 1 Weapon . | 1 . . Tool/Special . | . . . Unused Backups 5 | . 3 2 Power . | . . . Propulsion 4 | . 3 1 Utility 1 | . . 1 Weapon . | . . . Tool/Special . | . . . Average Slot Usage (%) 80 | . 82 78 Engine 12 | . 14 11 Treads 4 | . . 8 Leg 8 | . 16 . Flight 5 | . . 10 Storage 11 | . 14 8 Processor 12 | . 10 14 Energy Gun 19 | . 21 16 Ballistic Gun 4 | . 5 3 Special Melee Weapon 1 | . . 3 Peak Build Rating 9 | 6 9 8 Average Rating 6 | 6 7 6 On Entrance 6 | 6 6 8 Avg Prop Armor Cover (%) 11 | . 11 . Naked Turns . | . . . Heaviest Build 14 | 11 14 14 Greatest Support 20 | 20 20 20 Greatest Overweight (x) 4 | . 4 . Average Overweight (x) . | . 1 . Largest Inventory Capacity 8 | 8 8 8 Average Capacity 7 | 8 8 6 Most Carried 8 | 6 5 8 Average Carried 3 | 3 2 4 Final Capacity 8 | 8 8 5 Final Carried 4 | 1 4 3 Class Distribution -------------------- 100% | Mutant Dominant Class ---------------- Mutant | -10/Materials Mutant | -10/Mines Resources | -11 -10 -10 ----------- Run | Yrd Mat Min Matter Collected 331 | 192 79 60 Remotely . | . . . Salvage Created 316 | . 175 141 Parts 22 | . 13 9 Haulers Intercepted . | . . . Recyclers Shooed 2 | . . 2 Parts Field Recycled . | . . . Retrieved Matter . | . . . Parts Self-Destructed . | . . . Prevented . | . . . Parts Restored . | . . . Kills | -11 -10 -10 ------- Run | Yrd Mat Min Combat Hostiles Destroyed 9 | . 5 4 Guns 9 | . 5 4 Classes Destroyed 4 | . 3 1 Recycler 1 | . . 1 Watcher 1 | . 1 . Swarmer 7 | . 3 4 Grunt 2 | . 2 . Best Kill Streak 4 | . 2 4 Combat Bots Only 3 | . 2 3 Max Kills in Single Turn 1 | . 1 1 Gunslinging . | . . . Exploded . | . . . Melee . | . . . Uniques/NPCs Destroyed . | . . . Combat | -11 -10 -10 -------- Run | Yrd Mat Min Hostile Shots Fired 91 | . 43 48 Missed 24 | . 11 13 Hits 67 | . 32 35 Projectile 67 | . 32 35 Critical Strikes 3 | . 2 1 Damage Taken 739 | . 444 295 Core 257 | . 112 145 Absorbed by Shields . | . . . Core Remaining (%) 100 | 100 . . Volleys Fired 49 | . 28 21 Largest 2 | . 2 2 Hottest 112 | . 112 112 Shots Fired 72 | . 48 24 Gun 72 | . 48 24 Cannon . | . . . Launcher . | . . . Special . | . . . Kinetic 23 | . 16 7 Thermal 41 | . 24 17 Explosive . | . . . Electromagnetic 8 | . 8 . Robot Hit Streak 7 | . 7 6 Robot Miss Streak 10 | . 10 2 Penetration Max . | . . . Secondary Targets 2 | . 1 1 Max Gunslinging Chain 1 | . 1 1 Shots Hit Robots 44 | . 26 18 Core Hits 16 | . 9 7 Critical Kills . | . . . Critical Parts Destroyed . | . . . Critical Strikes . | . . . Melee Attacks 2 | . . 2 Impact . | . . . Slashing . | . . . Piercing . | . . . Sneak Attacks 2 | . . 2 Combat Hostiles . | . . . Follow-up Attacks . | . . . Damage Inflicted 520 | . 309 211 Guns 520 | . 309 211 Cannons . | . . . Explosions . | . . . Melee . | . . . Ramming . | . . . Kinetic 129 | . 94 35 Thermal 322 | . 146 176 Explosive . | . . . Electromagnetic 69 | . 69 . Impact . | . . . Slashing . | . . . Piercing . | . . . Highest Corruption . | . . . Average Corruption . | . . . Corruption Purged . | . . . Corruption Blocked . | . . . Overload Shots . | . . . Overflow Damage 1 | . 1 . Projectiles . | . . . Explosions 1 | . 1 . Melee . | . . . Knockbacks . | . . . Impact . | . . . Kinetic . | . . . Secondary . | . . . Self-Inflicted Damage 99 | . 99 . Shots 1 | . 1 . Rammed . | . . . Targets Rammed . | . . . Kicked . | . . . Crushed . | . . . Highest Temperature 451 | . 451 144 Average Temperature 147 | . 179 75 Received Heat Transfer 156 | . 156 . Effects 4 | . 4 . Shutdowns 1 | . 1 . Energy Bleed 1 | . 1 . Interference 1 | . 1 . Short Circuit 1 | . 1 . Siege Activations . | . . . Martial Activations . | . . . Shielding Activations . | . . . Robots Disrupted . | . . . Combat Hostiles . | . . . Robots Corrupted . | . . . Combat Hostiles . | . . . Parts Fried . | . . . Impact Corruptions . | . . . Robots Melted . | . . . Combat Hostiles . | . . . Parts Melted 2 | . 1 1 Heat Transferred 814 | . 370 444 Parts Sabotaged . | . . . Parts Stolen . | . . . Parts Stripped . | . . . Power Chain Reactions . | . . . Alert | -11 -10 -10 ------- Run | Yrd Mat Min Maximum Alert Level . | . . . Low Security (%) 100 | 100 100 100 Level 1 . | . . . Level 2 . | . . . Level 3 . | . . . Level 4 . | . . . Level 5 . | . . . High Security . | . . . Max Security . | . . . Peak Influence 114 | . 114 50 Initial 16 | . . 16 Average 29 | . 47 11 Influence Increases 287 | . 192 95 Destroy 0b10 Robot/C 180 | . 100 80 Destroy 0b10 Robot/NC 10 | . 5 5 Destroy Leader 32 | . 22 10 Disable Machine 15 | . 15 . Destroy Structure 35 | . 35 . Lose Combat Pursuer 15 | . 15 . Influence Decreases 267 | . 150 117 Entered New Map 26 | . . 26 Time Decay 211 | . 130 81 Lost Part 30 | . 20 10 Squads Dispatched . | . . . Investigation . | . . . Extermination . | . . . Reinforcement . | . . . Assault . | . . . Garrison . | . . . Intercept . | . . . Searches Triggered . | . . . Construction Impeded . | . . . Haulers Reinforced . | . . . Active Scanning Responses . | . . . Cargo Convoy Interrupts . | . . . Stealth | -11 -10 -10 --------- Run | Yrd Mat Min Distress Signals 1 | . 1 . Communications Jammed . | . . . Distress Signals . | . . . Times Spotted 14 | . 8 6 Peak Tracking Total 3 | . 3 3 Tactical Retreats 1 | . 1 . Traps | -11 -10 -10 ------- Run | Yrd Mat Min Traps Triggered . | . . . Indirectly . | . . . Trap Hack Attempts . | . . . Triggered . | . . . Disarmed . | . . . Reprogrammed . | . . . Reused . | . . . Traps Extracted . | . . . Installed . | . . . Triggered . | . . . Machines | -11 -10 -10 ---------- Run | Yrd Mat Min Machines Disabled 1 | . 1 . Max in Single Turn 1 | . 1 . Machines Repaired . | . . . Machines Dismantled . | . . . Machines Sabotaged . | . . . Overloaded Fab Kills . | . . . Hacking | -11 -10 -10 --------- Run | Yrd Mat Min Machines Accessed . | . . . Terminals . | . . . Fabricators . | . . . Repair Stations . | . . . Recycling Units . | . . . Scanalyzers . | . . . Garrison Access . | . . . Total Hacks . | . . . Successful . | . . . Failed . | . . . Catastrophic . | . . . Database Lockouts . | . . . Manual . | . . . Terminals . | . . . Fabricators . | . . . Repair Stations . | . . . Recycling Units . | . . . Scanalyzers . | . . . Garrison Access . | . . . Terminal Hacks . | . . . Fabricator Hacks . | . . . Repair Station Hacks . | . . . Recycling Unit Hacks . | . . . Scanalyzer . | . . . Garrison Access Hacks . | . . . Unauthorized Hacks . | . . . Terminals . | . . . Fabricators . | . . . Repair Stations . | . . . Recycling Units . | . . . Scanalyzers . | . . . Garrison Access . | . . . Data Cores Recovered . | . . . Used . | . . . Hacking Detections . | . . . Full Trace Events . | . . . Feedback Events . | . . . Feedback Blocked . | . . . Robot Schematics Acquired . | . . . Robots Built . | . . . Authchips . | . . . Time . | . . . Total Robot Build Rating . | . . . Part Schematics Acquired . | . . . Parts Built . | . . . Authchips . | . . . Time . | . . . Total Part Build Rating . | . . . Part Studies Acquired . | . . . Parts Repaired . | . . . Time . | . . . Parts Recycled . | . . . Recycled Matter . | . . . Retrieved Matter . | . . . Retrieved Components . | . . . Parts Scanalyzed . | . . . Part Schematics Acquired . | . . . Parts Damaged . | . . . Bothacking | -11 -10 -10 ------------ Run | Yrd Mat Min Used RIF Installer . | . . . Robots Hacked 1 | . . 1 Non-combat 1 | . . 1 Combat . | . . . Robot Hacks Applied 1 | . . 1 no_distress 1 | . . 1 Relay Couplers Released . | . . . Fabnet Peak Effective % . | . . . Robots Rewired . | . . . Allies Hacked . | . . . Hacks Repelled . | . . . Allies | -11 -10 -10 -------- Run | Yrd Mat Min Total Allies . | . . . Largest Group . | . . . Highest-Rated Group . | . . . Highest-Rated Ally . | . . . Total Orders . | . . . Ally Attacks . | . . . Total Damage . | . . . Kills . | . . . Allies Corrupted . | . . . Allies Melted . | . . . Intel | -11 -10 -10 ------- Run | Yrd Mat Min Active Infowar (turns) . | . . . Robot Analysis Total . | . . . Derelict Logs Recovered 1 | . . 1 Drone Launches . | . . . Drone Recoveries . | . . . Exploration | -11 -10 -10 ------------- Run | Yrd Mat Min Turns Passed 622 | 6 318 298 Spaces Moved 295 | 1 132 162 Core 51 | . 51 . Treads 103 | . 12 91 Legs 70 | 1 69 . Wheels . | . . . Hover . | . . . Flight 71 | . . 71 Fastest Speed 37 | 120 120 37 Average Speed 137 | 120 175 106 Slowest Speed 250 | 120 250 160 Overloaded Moves . | . . . Propulsion Burnouts . | . . . Robots Hopped . | . . . Potential Cave-ins . | . . . Cave-ins Triggered . | . . . Exploration Rate (%) 19 | 2 21 35 Regions Visited 2 Branch Regions 1 Pre-discovered Areas . | . . . Known Exits Taken . | . . . Unknown Exits Taken 2 | 1 1 . Scrap Searched 2 | . . 2 Spaces Dug . | . . . Terrain Destroyed 35 | . 35 . Melee . | . . . Projectile . | . . . AOE 35 | . 35 . Terrain Rammed . | . . . Walls Destroyed . | . . . Machines Disabled . | . . . Actions | -11 -10 -10 --------- Run | Yrd Mat Min Total 449 | 7 176 266 Wait 70 | . . 70 Move 293 | . 131 162 Hop . | . . . Pick Up 10 | . 7 3 Fast Attach . | . . . Attach 10 | . 5 5 Detach 4 | . 3 1 Swap 2 | 2 . . Drop 9 | 5 2 2 Fire 49 | . 28 21 Melee 2 | . . 2 Ram . | . . . Kick . | . . . Crush . | . . . Escape Stasis . | . . . Rewire . | . . . Trap . | . . . Miscellaneous . | . . . Route ------- -11/Scrapyard -10/Materials -10/Mines (discovered 1 exit: *Mat) History --------- Turn | Location | Event 7 | -11/Scrapyard | Discovered new exit (range 0) 7 | -11/Scrapyard | Entered Materials 184 | -10/Materials | Discovered new exit (range 13) 305 | -10/Materials | Build established: Mutant 325 | -10/Materials | Entered Mines 428 | -10/Mines | Discovered new exit (range 10) 429 | -10/Mines | Learned Materials garrison access intel 463 | -10/Mines | Core integrity fell below 50% 603 | -10/Mines | Identified exit to Materials 612 | -10/Mines | Core integrity fell below 20% 623 | -10/Mines | Destroyed by S-10 Pest with Light Assault Rifle Last Messages --------------- 00532_ R-06 Scavenger collects Lgt. Ion Engine. 00536_ K-01 Serf collects debris. 00537_ R-06 Scavenger collects Sml. Storage Unit. 00539_ Dropped Beam Rifle. 00540_ K-01 Serf collects debris. 00544_ Acquired 18 matter. 00545_ Acquired 2 matter. 00546_ Sneak attack on K-01 Serf. 00546_ Jacked K-01 Serf... >>no_distress Distress signal routine blocked. 00546_ K-01 Serf collects debris. 00547_ Sneak attack on K-01 Serf. 00547_ Jacked K-01 Serf... >>find_chute No applicable chute records found in memory. 00603_ EXIT=IDENTIFIED: MATERIALS 00614_ Datajack destroyed. 00620_ S-10 Pest destroyed. 00620_ K-01 Serf collects debris. Map ----- +----------------------------------------------------+ | | | | | | | | | | | | | ?????????????????????????????????????????????????? | | ?????????????????????????????????????????????????? | | ?????????????????????????????????????????????????? | | ?????????????????????????????????????????????????? | | ?????????????????????????????????????????????????? | | ???????????????????????????????????###########???? | | ?????????????????????????????####??# #???? | | ????????????????????????????## ##?# #???? | | ???????????????????????###### #?# """ """ #???? | | ??????????????????????## [#?# """ """ #???? | | ??????????????????????# < ### """ """ #???? | | ??????????????????????# % [ #???? | | ??????????????????????## % ##### """ """ #???? | | ???????????????????????# # #???# """ """ #???? | | ???????????????????????## ## #???# """ """ #???? | | ????????????????????????##### #???# #???? | | ????????????????????????????# #???###########???? | | ????????????????????#########]%#?????????????????? | | ??????????????#?????# ss #?????????????????? | | ??????????????# ????# =%=@ %! #?????????????????? | | ??????????????# ??## k#########?????????????????? | | ??????????????# ### #?????????????????????????? | | ??????????????# ##????????????????????????? | | ??????????????# #????????????????????????? | | ??????????????##### #????????????????????????? | | ??????????????????# #????????????????????????? | | ?????????########## #????????????????????????? | | ?????? ##???????????????????????? | | ?????? ##??????????????????????? | | ???????############## #??????????????????????? | | ????????????????????# #??????????????????????? | | ??????????????????### #??????????????????????? | | ?????????????????## ##??????????????????????? | | ????????????????## #???????????????????????? | | ???????????????## #???????????????????????? | | ???????????????# ##???????????????????????? | | ??????????????## ##????????????????????????? | | ?????????????## ##?????????????????????????? | | ????????????## ##?????????????????????????? | | ????????????# ##????????????????????????? | | ????????????# ######???????????????????? | | ????????????## ???????????????? | | ?????????????## ## ???????????????? | | ?????????????## ##?#### ????????????????? | +----------------------------------------------------+ Best States ------------- Heat Dissipation 25 Energy Generation 10 Energy Capacity 250 Matter Stores 300 Matter Capacity 300 Sight Range 16 Terrain Scan Density 10 Evasion (%) 62 Recoil Reduction 1 Item Schematics ----------------- None Robot Schematics ------------------ None Fabricated ------------ Nothing Repaired ---------- Nothing Studied --------- None Alien Tech Used ----------------- None Achievements -------------- None Challenges ------------ None Game ------ Seed RingBombCasing Manual? 0 Play Time 00:07:18 Cumulative 15.8 hours Start 2026.08.12 @ 15:27:35 End 2026.08.12 @ 15:33:21 Sessions 1 Manual Loads 0 Difficulty Rogue Special Mode None Game No. 46 Rogue 39 Adventurer 7 Explorer 0 Win Type - Total 0 Types 0/0/0/0/0/0/0/0/0/0 Lore% 10 Gallery% 20 Achievement% 14 Wizard Run 0 Options --------- Layout 0 ASCII 0 Keyboard 0 Movement Mouse Keybinds 0 Fullscreen 1 Font 18/SmallcapsGlow Map View 38x25 Zoom Use 100% Tactical HUD 1 Map Filters NONE Filters NONE Steam 1 RUN: 18cc3c11-4db0-42a8-b77a-caf09ebf2876